bitfinex-derivatives/quotes_BNBF0:USTF0_20251002
["timestamp","ask_amount","ask_price","bid_price","bid_amount"]
[1759374507410,0.86542512,1035.7,1034.5,0.64739254]
[1759374507609,0.86542512,1035.9,1034.6,0.64739254]
[1759374507905,0.86542512,1036.0,1034.7,0.64739254]
[1759374508509,0.86542512,1035.9,1034.7,0.64739254]
[1759374509009,0.86542512,1036.0,1034.8,0.64739254]
[1759374510205,0.86542512,1036.0,1034.7,0.64739254]
[1759374510409,0.86542512,1036.1,1034.7,0.64739254]
[1759374510706,0.86542512,1036.0,1034.6,7.49706468]
[1759374511111,0.86542512,1035.9,1034.7,0.64739254]
[1759374512311,0.86542512,1035.9,1034.6,7.49706468]
[1759374513009,0.86542512,1035.9,1034.6,6.84967214]
[1759374513311,0.86542512,1035.8,1034.6,7.49706468]
[1759374513609,0.86542512,1035.9,1034.6,7.49706468]
[1759374514209,0.86542512,1035.8,1034.6,7.49706468]
[1759374515510,0.86542512,1035.9,1034.6,7.49706468]
[1759374516212,0.86542512,1035.8,1034.6,7.49706468]
[1759374516611,0.86542512,1035.9,1034.6,7.49706468]
[1759374517312,0.86542512,1035.8,1034.6,7.49706468]
[1759374518316,0.86542512,1036.0,1034.6,6.84967214]
[1759374519014,0.86542512,1036.0,1034.6,7.49706468]
[1759374519913,0.86542512,1036.1,1034.7,0.64739254]
[1759374520315,0.86542512,1036.0,1034.8,0.64739254]
[1759374521515,0.86542512,1036.1,1034.8,0.64739254]
[1759374523222,0.86542512,1036.1,1034.7,0.64739254]
[1759374524118,0.86542512,1036.3,1034.7,0.64739254]
[1759374525322,0.86542512,1036.3,1034.6,7.49706468]
[1759374525722,0.86542512,1036.3,1034.7,0.64739254]
[1759374526326,0.86542512,1036.3,1034.6,7.49706468]
[1759374526723,0.86542512,1036.3,1034.7,0.64739254]
[1759374527227,0.86542512,1036.3,1034.6,7.49706468]
[1759374528830,0.86542512,1036.4,1034.7,0.64739254]
[1759374529027,0.86542512,1036.4,1034.6,6.84967214]
[1759374529028,0.86542512,1036.2,1034.8,0.64739254]
[1759374532935,0.86542512,1036.4,1034.7,0.64739254]
[1759374536033,0.86542512,1036.5,1034.7,0.64739254]
[1759374538339,0.86542512,1036.4,1034.7,0.64739254]
[1759374539239,0.86542512,1036.5,1034.7,0.64739254]
[1759374539440,0.86542512,1036.5,1034.6,7.49706468]
[1759374539635,0.86542512,1036.3,1034.6,7.49706468]
[1759374540538,0.86542512,1036.2,1034.6,7.49706468]
[1759374540841,0.86542512,1036.1,1034.6,7.49706468]
[1759374541738,0.86542512,1036.2,1034.6,7.49706468]
[1759374541938,0.86542512,1036.1,1034.6,7.49706468]
[1759374542339,0.86542512,1036.0,1034.6,6.84967214]
[1759374545338,0.86542512,1036.1,1034.6,6.84967214]
[1759374545540,0.86542512,1036.1,1034.6,7.49706468]
[1759374545943,0.16805911,1035.8,1034.6,7.49706468]
[1759374546644,0.16805911,1035.8,1034.6,6.84967214]
[1759374546844,0.16805911,1035.8,1034.7,0.64739254]
[1759374547043,0.86542512,1036.2,1034.7,0.64739254]
[1759374547343,0.1680441,1036.0,1034.7,0.64739254]
[1759374554250,0.1680441,1036.0,1034.8,0.64739254]
[1759374554849,0.1680441,1036.0,1034.9,0.64739254]
[1759374558756,0.1680441,1036.0,1034.7,0.64739254]
[1759374560358,0.1680441,1036.0,1034.8,0.64739254]
[1759374566666,1.03346922,1036.0,1034.7,0.64739254]
[1759374567265,1.03346922,1036.0,1034.8,0.64739254]
[1759374571866,0.1680441,1036.0,1034.7,0.64739254]
[1759374582871,0.1680441,1036.0,1034.8,0.64739254]
[1759374583171,1.03346922,1036.0,1034.8,0.64739254]
[1759374585778,0.1680441,1036.0,1034.8,0.64739254]
[1759374586578,0.1680441,1036.0,1034.7,0.64739254]
[1759374587580,1.03346922,1036.0,1034.7,0.64739254]
[1759374587775,0.86542512,1035.8,1034.7,0.64739254]
[1759374588681,0.86542512,1035.7,1034.7,0.64739254]
[1759374588980,0.86542512,1035.7,1034.6,7.49706468]
[1759374592477,1.03346922,1036.0,1034.6,6.84967214]
[1759374595784,0.1680441,1036.0,1034.6,6.84967214]
[1759374596284,0.1680441,1036.0,1034.9,0.64739254]
[1759374596485,0.86542512,1036.5,1034.9,0.64739254]
[1759374596680,0.86542512,1036.6,1035.0,0.64739254]
[1759374596887,0.16800434,1036.1,1035.0,0.64739254]
[1759374597187,0.86542512,1036.6,1035.0,0.64739254]
[1759374597487,0.16799461,1036.1,1035.0,0.64739254]
[1759374597686,0.86542512,1036.6,1035.0,0.64739254]
[1759374597887,0.16799461,1036.3,1035.0,0.64739254]
[1759374606394,0.16799461,1036.3,1034.9,0.64739254]
[1759374609303,0.16799461,1036.3,1034.8,0.64739254]
[1759374609499,1.03341973,1036.3,1034.8,0.64739254]
[1759374610300,0.86542512,1036.2,1034.8,0.64739254]
[1759374613402,1.03341973,1036.3,1034.9,0.64739254]
[1759374619806,0.86542512,1036.2,1034.9,0.64739254]
[1759374620209,1.03341973,1036.3,1034.9,0.64739254]
[1759374620710,0.86542512,1036.2,1034.9,0.64739254]
[1759374620908,1.03341973,1036.3,1034.9,0.64739254]
[1759374621112,0.86542512,1036.2,1034.9,0.64739254]
[1759374621411,0.16799461,1036.3,1034.8,0.64739254]
[1759374621612,0.16799461,1036.3,1034.6,7.71304234]
[1759374621813,0.16799461,1036.3,1035.0,0.64764393]
[1759374622013,0.16799461,1036.3,1035.1,0.64764393]
[1759374624312,0.16799461,1036.3,1035.2,0.64764393]
[1759374624811,0.16799461,1036.3,1035.1,0.64764393]
[1759374627912,0.16799461,1036.3,1035.2,0.64764393]
[1759374630517,0.16799461,1036.3,1035.3,0.64764393]
[1759374631417,0.16799461,1036.3,1035.2,0.64764393]
[1759374632213,0.16799461,1036.3,1034.9,1.2950553]
[1759374632417,0.16799461,1036.3,1034.1,2.1584255]
[1759374632714,0.16799461,1036.3,1034.0,41.24356492]
[1759374633017,0.16799461,1036.3,1034.0,48.30815963]
[1759374633317,0.16799461,1036.3,1035.2,0.64545966]
[1759374636317,0.16799461,1036.3,1035.1,0.64545966]
[1759374636519,0.16799461,1036.3,1035.0,0.64545966]
[1759374640216,0.16799461,1036.3,1035.1,0.64545966]
[1759374640513,0.86258021,1036.8,1035.2,0.64545966]
[1759374640720,0.16796623,1036.4,1035.2,0.64545966]
[1759374655228,0.16796623,1036.4,1035.3,0.64545966]
[1759374664335,0.16796623,1036.4,1035.1,8.0070344]
[1759374664531,0.16796623,1036.4,1035.3,0.64801743]
[1759374665237,0.86258021,1036.9,1035.4,0.64801743]
[1759374665442,1.29387032,1037.2,1035.4,0.64801743]
[1759374665443,0.16794029,1036.6,1035.4,0.64801743]
[1759374667044,0.16794029,1036.6,1035.2,0.64801743]
[1759374672550,0.86258021,1037.0,1035.3,0.64801743]
[1759374672751,0.86258021,1037.1,1035.4,0.64801743]
[1759374673050,0.16792085,1036.7,1035.4,0.64801743]
[1759374673547,0.16792085,1036.7,1035.5,0.64801743]
[1759374676748,0.16792085,1036.7,1035.6,0.64801743]
[1759374678454,0.16792085,1036.7,1035.4,0.64801743]
[1759374683354,0.16792085,1036.7,1035.5,0.64801743]
[1759374684756,1.03050106,1036.7,1035.5,0.64801743]
[1759374696466,1.03050106,1036.7,1035.6,0.64801743]
[1759374702674,0.16792085,1036.7,1035.5,0.64801743]
[1759374708977,0.16792085,1036.7,1035.6,7.44112064]
[1759374713281,1.03050106,1036.7,1035.6,6.79310321]
[1759374713781,0.16792085,1036.7,1035.6,6.79310321]
[1759374717388,0.86258021,1036.5,1035.6,6.79310321]
[1759374717584,0.86258021,1036.4,1035.6,6.79310321]
[1759374718490,0.86258021,1036.5,1035.6,6.79310321]
[1759374720489,0.86258021,1036.6,1035.6,6.79310321]
[1759374720785,0.86258021,1036.5,1035.6,6.79310321]
[1759374720989,0.86258021,1036.6,1035.6,6.79310321]
[1759374724994,1.03050106,1036.7,1035.6,6.79310321]
[1759374726995,1.03050106,1036.7,1035.6,7.44112064]
[1759374730503,0.86258021,1036.6,1035.6,6.79310321]
[1759374730999,0.86258021,1036.5,1035.6,6.79310321]
[1759374733003,0.86258021,1036.6,1035.6,6.79310321]
[1759374733604,0.86258021,1036.5,1035.6,6.79310321]
[1759374737304,0.86258021,1036.6,1035.6,6.79310321]
[1759374737604,0.86258021,1036.4,1035.6,6.79310321]
[1759374740009,0.86258021,1036.3,1035.6,6.79310321]
[1759374742208,0.86258021,1036.4,1035.6,6.79310321]
[1759374742510,0.86258021,1036.5,1035.6,6.79310321]
[1759374747421,0.86258021,1036.4,1035.0,0.64801743]
[1759374748020,0.86258021,1036.4,1035.1,0.64801743]
[1759374748221,0.86258021,1036.4,1035.0,0.64801743]
[1759374748921,0.86258021,1036.3,1034.9,0.64801743]
[1759374749221,0.86258021,1036.3,1034.8,0.64801743]
[1759374749718,0.86258021,1036.4,1034.8,0.64801743]
[1759374751221,0.86258021,1036.4,1034.7,0.64801743]
[1759374752521,0.86258021,1036.4,1034.6,40.42045569]
[1759374752717,0.86258021,1036.4,1034.7,0.64831946]
[1759374752922,0.86258021,1036.4,1034.8,0.64831946]
[1759374753222,0.86258021,1036.3,1035.0,0.64831946]
[1759374753918,0.86258021,1036.4,1035.0,0.64831946]
[1759374754122,0.86258021,1036.5,1035.1,0.64831946]
[1759374754723,0.86258021,1036.6,1035.2,0.64831946]
[1759374755822,0.86258021,1036.6,1035.1,0.64831946]
[1759374760428,0.86258021,1036.6,1035.2,0.64831946]
[1759374760629,0.86258021,1036.6,1035.1,0.64831946]
[1759374760829,0.86258021,1036.6,1035.2,0.64831946]
[1759374766233,0.86258021,1036.5,1035.2,0.64831946]
[1759374767135,0.86258021,1036.6,1035.2,0.64831946]
[1759374773341,0.16792085,1036.7,1035.0,0.64831946]
[1759374774138,0.16792085,1036.7,1034.9,0.64831946]
[1759374774337,0.86258021,1036.4,1035.0,0.64831946]
[1759374775442,0.86258021,1036.3,1035.0,0.64831946]
[1759374776945,0.86258021,1036.2,1035.0,0.64831946]
[1759374777239,0.86258021,1036.3,1034.8,1.50893234]
[1759374777442,0.86258021,1036.2,1034.7,0.64831946]
[1759374778245,0.86258021,1036.3,1034.7,0.64831946]
[1759374778542,0.86258021,1036.3,1034.6,41.06877515]
[1759374778841,0.86258021,1036.2,1034.6,41.06877515]
[1759374779242,0.86258021,1036.1,1034.6,41.06877515]
[1759374779446,0.86258021,1035.9,1034.6,41.06877515]
[1759374780647,0.86258021,1035.9,1034.7,0.64831946]
[1759374781245,0.86258021,1036.0,1034.6,41.06877515]
[1759374781547,0.86258021,1036.3,1034.6,40.42045569]
[1759374782244,0.86258021,1036.4,1034.6,40.42045569]
[1759374786552,0.86258021,1036.2,1034.6,40.42045569]
[1759374789859,0.86258021,1036.3,1034.6,40.42045569]
[1759374792855,0.86258021,1036.2,1034.6,40.42045569]
[1759374797361,0.86258021,1036.1,1034.6,40.42045569]
[1759374801762,0.86258021,1036.3,1034.6,41.06877515]
[1759374806065,0.86258021,1036.2,1034.6,40.42045569]
[1759374806667,0.86258021,1036.0,1034.6,40.42045569]
[1759374807564,0.86258021,1036.1,1034.6,40.42045569]
[1759374811079,0.86258021,1036.2,1034.6,40.42045569]
[1759374811779,0.86258021,1036.1,1034.6,40.42045569]
[1759374811982,0.86258021,1036.2,1034.6,40.42045569]
[1759374812482,0.86258021,1036.1,1034.6,40.42045569]
[1759374812778,0.86258021,1036.2,1034.6,40.42045569]
[1759374813482,0.86258021,1036.1,1034.6,40.42045569]
[1759374814084,0.86258021,1036.2,1034.6,40.42045569]
[1759374814284,0.86258021,1036.1,1034.6,40.42045569]
[1759374815385,0.86258021,1036.0,1034.6,40.42045569]
[1759374817384,1.29387032,1036.2,1034.6,40.42045569]
[1759374817385,0.86258021,1036.2,1034.6,40.42045569]
[1759374818180,0.86258021,1036.1,1034.6,40.42045569]
[1759374820286,0.86258021,1036.1,1034.6,41.06877515]
[1759374821282,0.86258021,1036.0,1034.6,41.06877515]
[1759374821482,0.86258021,1036.1,1034.6,41.06877515]
[1759374822782,0.86258021,1036.2,1034.7,0.64831946]
[1759374825284,0.86258021,1036.1,1034.7,0.64831946]
[1759374825985,1.29387032,1036.3,1034.7,0.64831946]
[1759374825986,0.86258021,1036.0,1034.7,0.64831946]
[1759374826186,0.86258021,1036.0,1034.6,0.64831946]
[1759374826990,0.86258021,1035.9,1034.6,0.64831946]
[1759374827990,0.86258021,1036.0,1034.6,0.64831946]
[1759374828190,0.86258021,1035.9,1034.6,0.64831946]
[1759374830190,0.86258021,1036.0,1034.6,0.64831946]
[1759374830392,0.86258021,1035.9,1034.6,0.64831946]
[1759374831693,0.86258021,1035.8,1034.5,0.64831946]
[1759374832897,0.86258021,1035.7,1034.5,0.64831946]
[1759374833291,0.86258021,1035.7,1034.6,0.64831946]
[1759374835295,0.86258021,1035.6,1034.6,0.64831946]
[1759374836796,0.86258021,1035.7,1034.6,0.64831946]
[1759374838400,0.86258021,1035.6,1034.6,0.64831946]
[1759374839197,0.86258021,1035.5,1034.6,0.64831946]
[1759374839701,0.86258021,1035.6,1034.5,0.64831946]
[1759374840598,0.86258021,1035.5,1034.5,0.64831946]
[1759374841700,0.86258021,1035.6,1034.4,0.64831946]
[1759374842202,0.86258021,1035.6,1034.3,0.64831946]
[1759374844103,1.29387032,1035.9,1034.2,0.81644637]
[1759374844104,0.86258021,1035.7,1034.2,0.81644637]
[1759374845207,0.86258021,1035.7,1034.2,0.16812691]
[1759374851313,0.86258021,1035.6,1034.2,0.16812691]
[1759374851514,0.86258021,1035.6,1034.2,0.81644637]
[1759374851808,0.86258021,1035.6,1034.2,8.24211919]
[1759374853408,0.86258021,1035.6,1034.2,7.59379973]
[1759374853909,0.86258021,1035.6,1034.2,8.24211919]
[1759374854713,0.86258021,1035.6,1034.2,7.59379973]
[1759374857311,2.32437139,1036.7,1034.2,7.59379973]
[1759374857312,0.86258021,1035.7,1034.2,7.59379973]
[1759374859414,0.86258021,1035.6,1034.2,7.59379973]
[1759374860114,0.86258021,1035.7,1034.2,7.59379973]
[1759374865815,0.86258021,1035.6,1034.2,8.24211919]
[1759374867421,0.86258021,1035.7,1034.2,8.24211919]
[1759374868416,0.86258021,1035.6,1034.2,8.24211919]
[1759374869316,0.86258021,1035.7,1034.2,8.24211919]
[1759374872116,0.86258021,1035.6,1034.2,8.24211919]
[1759374872517,0.86258021,1035.7,1034.2,8.24211919]
[1759374873221,0.16813178,1035.4,1034.2,8.24211919]
[1759374884234,0.16813178,1035.4,1034.3,0.64831946]
[1759374884532,0.16813178,1035.4,1034.2,8.24211919]
[1759374885535,0.16813178,1035.4,1034.2,7.59379973]
[1759374889437,1.03071199,1035.4,1034.2,7.59379973]
[1759374889735,0.86258021,1035.3,1034.2,7.42567282]
[1759374907745,0.86258021,1035.2,1034.2,7.42567282]
[1759374908642,0.86258021,1035.3,1034.2,7.42567282]
[1759374913049,0.86258021,1035.2,1034.2,7.42567282]
[1759374913451,0.86258021,1035.1,1034.2,7.42567282]
[1759374913851,0.86258021,1035.0,1034.2,7.42567282]
[1759374914050,0.86258021,1034.9,1033.7,43.60850982]
[1759374916353,0.86258021,1035.0,1033.7,43.60850982]
[1759374917159,0.86258021,1035.0,1033.7,42.96019036]
[1759374917853,0.86258021,1034.9,1033.7,42.7919952]
[1759374918555,0.86258021,1035.0,1033.7,42.7919952]
[1759374919056,0.86258021,1034.9,1033.7,42.7919952]
[1759374921153,0.86258021,1035.0,1033.7,42.7919952]
[1759374921658,0.86258021,1035.0,1033.5,0.64831946]
[1759374921955,0.86258021,1034.9,1033.1,0.64831946]
[1759374922155,0.86258021,1034.8,1033.4,0.16825778]
[1759374922655,0.86258021,1034.7,1033.4,0.16825778]
[1759374923356,0.86258021,1034.8,1033.4,0.16825778]
[1759374925356,0.86258021,1034.9,1033.4,0.16825778]
[1759374926557,0.86258021,1035.0,1033.4,0.16825778]
[1759374928359,0.86258021,1035.1,1033.4,0.16825778]
[1759374930560,0.86258021,1035.2,1033.4,0.16825778]
[1759374936663,0.86258021,1035.3,1033.4,0.16825778]
[1759374937666,0.86258021,1035.2,1033.4,0.16825778]
[1759374938270,0.86258021,1035.3,1033.4,0.16825778]
[1759374941273,0.86258021,1035.2,1033.4,0.16825778]
[1759374946273,0.86258021,1035.1,1033.4,0.16825778]
[1759374948178,0.86258021,1035.0,1033.4,0.16825778]
[1759374949173,0.86258021,1034.9,1033.4,0.16825778]
[1759374949976,0.86258021,1035.0,1033.4,0.16825778]
[1759374950177,0.86258021,1034.9,1033.4,0.16825778]
[1759374955682,0.86258021,1035.0,1033.4,0.16825778]
[1759374956081,0.86258021,1035.1,1033.4,0.16825778]
[1759374956785,0.86258021,1034.9,1033.4,0.16825778]
[1759374957182,0.86258021,1035.0,1033.4,0.16825778]
[1759374957483,0.86258021,1035.2,1033.4,0.16825778]
[1759374958085,0.86258021,1035.1,1033.4,0.16825778]
[1759374958486,0.86258021,1034.8,1033.4,0.16825778]
[1759374960090,0.86258021,1034.9,1033.4,0.16825778]
[1759374963189,0.86258021,1034.8,1033.4,0.16825778]
[1759374963389,0.86258021,1034.9,1033.4,0.16825778]
[1759374966289,0.86258021,1034.8,1033.4,0.16825778]
[1759374966891,0.86258021,1034.9,1033.4,0.16825778]
[1759374967092,0.86258021,1035.2,1033.4,0.16825778]
[1759374967291,0.16813178,1035.4,1033.4,0.16825778]
[1759374967292,0.86258021,1035.1,1033.4,0.16825778]
[1759374971398,0.86258021,1035.0,1033.4,0.16825778]
[1759374971598,0.86258021,1035.1,1033.4,0.16825778]
[1759374972199,0.86258021,1034.8,1033.4,0.81657724]
[1759374972499,0.86258021,1034.7,1033.4,0.16825778]
[1759374972698,0.86258021,1034.6,1033.4,0.81657724]
[1759374974304,0.16813178,1035.4,1033.4,0.16825778]
[1759374974305,0.86258021,1034.9,1033.4,0.16825778]
[1759374981207,0.86258021,1034.8,1033.2,0.64831946]
[1759374981610,0.86258021,1034.8,1033.3,0.16828382]
[1759374981815,0.86258021,1034.8,1033.3,7.45483751]
[1759374983515,0.86258021,1034.4,1033.4,0.64831946]
[1759374986213,0.86258021,1034.5,1033.3,8.10315697]
[1759374986413,0.86258021,1034.5,1033.3,7.45483751]
[1759374986914,0.86258021,1034.5,1033.3,7.28655369]
[1759374989020,0.86258021,1034.3,1033.3,7.28655369]
[1759374993717,0.86258021,1034.5,1033.3,7.28655369]
[1759375000323,0.86258021,1034.4,1033.3,7.28655369]
[1759375008337,0.86258021,1034.5,1033.3,7.28655369]
[1759375010237,0.86258021,1034.4,1033.3,7.28655369]
[1759375010838,0.86258021,1034.5,1033.3,7.28655369]
[1759375011033,0.86258021,1034.4,1033.3,7.28655369]
[1759375012437,0.86258021,1034.5,1033.3,7.28655369]
[1759375013135,0.86258021,1034.4,1033.3,7.28655369]
[1759375017041,0.86258021,1034.3,1033.3,7.28655369]
[1759375019241,0.86258021,1034.4,1033.3,7.28655369]
[1759375023445,0.86258021,1034.7,1033.3,7.28655369]
[1759375023645,0.86258021,1034.6,1033.3,7.28655369]
[1759375025951,0.86258021,1034.7,1033.3,7.28655369]
[1759375026647,0.86258021,1034.6,1033.3,7.28655369]
[1759375030250,0.86258021,1034.4,1033.3,7.28655369]
[1759375031656,0.86258021,1034.4,1033.0,0.64831946]
[1759375032756,0.86258021,1034.3,1033.0,0.64831946]
[1759375033759,0.86258021,1034.4,1033.0,0.64831946]
[1759375034459,0.86258021,1034.3,1033.0,0.64831946]
[1759375035461,0.86258021,1034.3,1032.9,0.64831946]
[1759375036164,0.86258021,1034.1,1032.9,0.64831946]
[1759375036365,0.86258021,1034.1,1032.8,0.64831946]
[1759375036562,0.86258021,1034.2,1032.8,0.64831946]
[1759375038461,0.86258021,1034.3,1032.7,0.64831946]
[1759375040366,0.16836931,1034.0,1032.8,0.16836931]
[1759375040564,0.16836931,1034.0,1032.8,7.71297944]
[1759375043373,0.16836931,1034.0,1032.8,8.3612989]
[1759375043573,0.16836931,1034.0,1032.9,0.64831946]
[1759375045471,0.16836931,1034.0,1033.0,0.64831946]
[1759375050577,0.16836931,1034.0,1032.9,0.64831946]
[1759375059683,0.16836931,1034.0,1032.8,7.71297944]
[1759375065491,0.16836931,1034.0,1032.8,8.3612989]
[1759375071895,0.16836931,1034.0,1032.8,7.71297944]
[1759375072699,0.16836931,1034.0,1032.8,8.3612989]
[1759375074201,0.16836931,1034.0,1032.8,7.71297944]
[1759375075298,0.16836931,1034.0,1032.8,8.3612989]
[1759375075502,0.16836931,1034.0,1032.8,7.71297944]
[1759375077201,0.16836931,1034.0,1032.8,8.3612989]
[1759375077402,0.16836931,1034.0,1032.9,0.64831946]
[1759375078108,1.03094952,1034.0,1033.0,0.64831946]
[1759375078807,0.16836931,1034.0,1032.9,0.64831946]
[1759375082610,0.16836931,1034.0,1033.0,0.64831946]
[1759375086410,0.16836931,1034.0,1032.9,0.64831946]
[1759375088314,0.86258021,1034.2,1032.9,0.64831946]
[1759375088514,0.16832777,1034.3,1033.3,0.64831946]
[1759375088811,0.16832777,1034.3,1033.4,0.64831946]
[1759375091012,0.16832777,1034.3,1033.3,0.64831946]
[1759375092015,0.16832777,1034.3,1033.2,0.64831946]
[1759375092616,1.03090798,1034.3,1033.1,0.64831946]
[1759375095616,0.86258021,1034.2,1033.0,0.64831946]
[1759375097020,0.86258021,1034.2,1032.9,0.64831946]
[1759375097317,1.03090798,1034.3,1033.1,0.64831946]
[1759375097617,0.16832777,1034.3,1033.1,0.64831946]
[1759375099920,1.03090798,1034.3,1033.1,0.64831946]
[1759375101224,0.16832777,1034.3,1033.1,0.64831946]
[1759375101521,0.16832777,1034.3,1033.2,0.64831946]
[1759375107022,0.16832777,1034.3,1033.1,0.64831946]
[1759375107521,1.03090798,1034.3,1033.0,0.64831946]
[1759375107722,0.16832777,1034.3,1033.0,0.64831946]
[1759375108226,1.03090798,1034.3,1033.0,0.64831946]
[1759375109627,0.86258021,1034.1,1032.9,0.64831946]
[1759375110125,0.86258021,1034.2,1032.9,0.64831946]
[1759375114124,0.86258021,1034.2,1032.8,8.3612989]
[1759375115128,0.86258021,1034.2,1032.9,0.64831946]
[1759375115423,1.03090798,1034.3,1032.9,0.64831946]
[1759375115624,0.86258021,1034.2,1032.9,0.64831946]
[1759375116927,1.03090798,1034.3,1032.9,0.64831946]
[1759375118126,0.86258021,1034.2,1032.9,0.64831946]
[1759375118431,1.03090798,1034.3,1032.8,8.3612989]
[1759375118631,0.86258021,1034.2,1032.9,0.64831946]
[1759375122533,0.86258021,1034.2,1032.8,8.3612989]
[1759375122729,0.86258021,1034.2,1032.9,0.64831946]
[1759375127032,0.16832777,1034.3,1032.8,7.71297944]
[1759375128337,1.03090798,1034.3,1032.8,7.71297944]
[1759375128534,0.86258021,1034.2,1032.8,7.71297944]
[1759375128938,0.86258021,1034.0,1032.8,7.71297944]
[1759375130042,0.86258021,1033.9,1032.8,7.71297944]
[1759375131144,0.86258021,1034.0,1032.8,7.71297944]
[1759375132142,0.86258021,1033.9,1032.8,7.71297944]
[1759375132438,0.86258021,1034.0,1032.8,7.71297944]
[1759375136739,0.86258021,1034.1,1032.8,7.71297944]
[1759375140145,0.86258021,1034.0,1032.8,7.71297944]
[1759375140945,0.86258021,1034.1,1032.8,7.71297944]
[1759375142744,0.86258021,1034.0,1032.8,7.71297944]
[1759375142943,0.86258021,1034.1,1032.8,7.54461013]
[1759375146952,0.86258021,1034.0,1032.8,7.54461013]
[1759375147248,0.86258021,1033.9,1032.5,0.81672217]
[1759375147453,0.86258021,1034.0,1032.1,0.64831946]
[1759375147654,0.86258021,1033.8,1032.3,0.16843287]
[1759375147849,0.86258021,1033.8,1032.3,5.28894572]
[1759375148251,0.86258021,1033.9,1032.3,5.12051285]
[1759375148556,0.86258021,1033.6,1032.3,5.12051285]
[1759375149754,0.86258021,1033.5,1032.3,5.12051285]
[1759375149951,0.86258021,1033.4,1032.3,5.12051285]
[1759375150655,0.86258021,1033.5,1032.3,5.12051285]
[1759375151057,0.86258021,1033.6,1032.3,5.12051285]
[1759375151757,0.86258021,1033.7,1032.3,5.12051285]
[1759375153057,0.16832777,1034.3,1032.3,5.12051285]
[1759375153058,0.86258021,1033.8,1032.3,5.12051285]
[1759375153352,0.86258021,1033.9,1032.3,5.12051285]
[1759375156156,0.86258021,1033.7,1032.3,5.12051285]
[1759375156359,0.86258021,1033.6,1032.3,5.12051285]
[1759375157860,0.86258021,1033.7,1032.3,5.12051285]
[1759375160863,0.86258021,1033.6,1032.3,5.12051285]
[1759375161565,0.86258021,1033.5,1032.3,5.12051285]
[1759375162562,0.86258021,1033.6,1032.3,5.12051285]
[1759375163368,0.86258021,1033.7,1032.3,5.12051285]
[1759375163567,0.86258021,1033.6,1032.3,5.12051285]
[1759375164467,0.86258021,1033.7,1032.3,5.12051285]
[1759375164668,0.86258021,1033.6,1032.3,5.12051285]
[1759375167566,0.86258021,1033.8,1032.3,5.12051285]
[1759375167870,0.86258021,1033.9,1032.3,5.12051285]
[1759375169970,0.86258021,1034.0,1032.3,5.12051285]
[1759375170470,0.86258021,1034.1,1032.3,5.12051285]
[1759375171271,0.86258021,1034.0,1032.3,5.12051285]
[1759375172271,0.86258021,1034.1,1032.3,5.12051285]
[1759375172771,0.86258021,1034.2,1032.3,5.12051285]
[1759375173471,0.16832777,1034.3,1032.3,5.12051285]
[1759375173472,1.03090798,1034.3,1032.3,5.12051285]
[1759375174171,0.86258021,1034.2,1032.3,5.12051285]
[1759375176678,0.86258021,1034.1,1032.3,5.12051285]
[1759375177680,0.86258021,1034.1,1032.3,5.76883231]
[1759375178479,1.03090798,1034.3,1032.3,5.12051285]
[1759375178678,0.16832777,1034.3,1032.3,5.12051285]
[1759375179077,1.03090798,1034.3,1032.3,5.12051285]
[1759375180080,0.86258021,1034.2,1032.3,5.12051285]
[1759375180281,0.86258021,1034.1,1032.3,5.12051285]
[1759375181077,0.86258021,1034.2,1032.3,5.12051285]
[1759375184086,0.86258021,1034.1,1032.3,5.12051285]
[1759375184288,0.86258021,1034.0,1032.3,5.12051285]
[1759375185183,0.86258021,1033.9,1032.3,5.12051285]
[1759375186081,0.86258021,1033.8,1032.3,5.12051285]
[1759375194395,0.86258021,1033.7,1032.3,5.12051285]
[1759375194592,0.86258021,1033.8,1032.3,5.12051285]
[1759375195995,0.86258021,1033.9,1032.3,5.12051285]
[1759375196200,0.86258021,1033.8,1032.3,5.12051285]
[1759375196393,0.86258021,1033.9,1032.3,5.12051285]
[1759375198202,0.86258021,1033.8,1032.3,5.76883231]
[1759375198401,0.86258021,1033.9,1032.3,5.76883231]
[1759375198698,0.86258021,1033.8,1032.3,5.76883231]
[1759375198901,0.86258021,1033.9,1032.3,5.76883231]
[1759375200804,0.86258021,1033.8,1032.3,5.76883231]
[1759375201301,0.86258021,1033.9,1032.3,5.76883231]
[1759375202607,0.86258021,1034.0,1032.4,0.64831946]
[1759375202813,0.86258021,1034.0,1032.5,0.64831946]
[1759375203012,0.86258021,1034.1,1032.5,0.64831946]
[1759375203210,0.86258021,1034.0,1032.5,0.64831946]
[1759375203415,0.86258021,1034.1,1032.5,0.64831946]
[1759375206112,0.16832777,1034.3,1032.4,0.64831946]
[1759375206317,0.16832777,1034.3,1033.0,0.64831946]
[1759375206818,0.16832777,1034.3,1033.1,0.64831946]
[1759375207318,0.16832777,1034.3,1032.8,0.86061288]
[1759375207319,0.16832777,1034.3,1033.0,0.64831946]
[1759375208316,0.16832777,1034.3,1032.9,0.64831946]
[1759375209122,0.16832777,1034.3,1032.8,0.64831946]
[1759375211222,0.16832777,1034.3,1032.7,0.64831946]
[1759375211420,0.16832777,1034.3,1032.8,0.64831946]
[1759375212422,0.16832777,1034.3,1032.9,0.64831946]
[1759375212626,0.16832777,1034.3,1033.0,0.64831946]
[1759375213326,0.16832777,1034.3,1032.9,0.64831946]
[1759375216322,0.16832777,1034.3,1032.8,0.64831946]
[1759375225129,0.16832777,1034.3,1032.9,0.64831946]
[1759375229731,0.16832777,1034.3,1033.0,0.64831946]
[1759375231333,0.16832777,1034.3,1032.9,0.64831946]
[1759375232136,0.16832777,1034.3,1033.0,0.64831946]
[1759375232932,0.16832777,1034.3,1032.9,0.64831946]
[1759375237738,0.16832777,1034.3,1032.8,0.64831946]
[1759375240140,0.16832777,1034.3,1032.9,0.64831946]
[1759375240541,0.16832777,1034.3,1033.0,0.64831946]
[1759375241742,0.16832777,1034.3,1032.7,0.64831946]
[1759375242241,0.16832777,1034.3,1032.8,0.64831946]
[1759375243842,0.16832777,1034.3,1032.7,0.64831946]
[1759375244346,0.16832777,1034.3,1032.8,0.64831946]
[1759375247450,0.16832777,1034.3,1032.9,0.64831946]
[1759375249848,0.16832777,1034.3,1032.8,0.64831946]
[1759375252255,0.16832777,1034.3,1032.9,0.64831946]
[1759375255054,0.16832777,1034.3,1032.8,0.64831946]
[1759375255257,0.16832777,1034.3,1032.9,0.64831946]
[1759375258265,0.16832777,1034.3,1033.0,0.64831946]
[1759375261866,0.16832777,1034.3,1033.1,0.64831946]
[1759375262066,0.16832777,1034.3,1033.0,0.64831946]
[1759375262271,0.16832777,1034.3,1033.1,0.64831946]
[1759375265274,1.03090798,1034.3,1033.2,0.64831946]
[1759375266072,0.16832777,1034.3,1033.2,0.64831946]
[1759375266269,1.03090798,1034.3,1033.2,0.64831946]
[1759375267972,1.03090798,1034.3,1033.1,0.64831946]
[1759375268170,1.03090798,1034.3,1033.2,0.64831946]
[1759375270274,0.16832777,1034.3,1033.1,0.64831946]
[1759375275381,0.16832777,1034.3,1033.4,0.64831946]
[1759375281488,0.16832777,1034.3,1033.2,0.64831946]
[1759375282284,0.16832777,1034.3,1033.1,0.64831946]
[1759375284090,0.16832777,1034.3,1033.2,0.64831946]
[1759375284492,0.16832777,1034.3,1033.1,0.64831946]